bitfinex-derivatives/quotes_BTCF0:USTF0_20251215
["timestamp","ask_amount","ask_price","bid_price","bid_amount"]
[1765787713442,0.51792226,89923.0,89922.0,0.06034]
[1765787714332,0.41781,89923.0,89922.0,0.06034]
[1765787716346,0.41781,89923.0,89922.0,0.002]
[1765787716648,0.0681309,89922.0,89921.0,3.29432594]
[1765787717742,0.0681309,89922.0,89921.0,3.29632594]
[1765787721159,0.7629709,89922.0,89921.0,3.29632594]
[1765787724543,0.0681309,89922.0,89921.0,3.29632594]
[1765787724744,0.7629709,89922.0,89921.0,3.29632594]
[1765787727259,0.7630109,89922.0,89921.0,3.29632594]
[1765787732661,1.1238109,89922.0,89921.0,3.29632594]
[1765787738359,0.4289309,89922.0,89921.0,3.29632594]
[1765787738561,1.0668009,89922.0,89921.0,3.29632594]
[1765787745371,1.20688525,89922.0,89921.0,3.29632594]
[1765787745772,1.0668009,89922.0,89921.0,3.14607929]
[1765787747172,1.0688009,89922.0,89921.0,3.14407929]
[1765787747871,1.0668009,89922.0,89921.0,3.14407929]
[1765787748076,1.0688009,89922.0,89921.0,3.14407929]
[1765787750977,1.0688009,89922.0,89921.0,2.28924716]
[1765787751279,1.0688009,89922.0,89921.0,0.37671517]
[1765787751480,1.180009,89922.0,89921.0,7e-08]
[1765787752779,0.0659835,89901.0,89900.0,0.07693]
[1765787752982,0.6388635,89901.0,89900.0,0.07693]
[1765787753675,0.5840035,89901.0,89900.0,0.07693]
[1765787753870,0.5840035,89901.0,89900.0,0.07793]
[1765787754069,0.57288,89901.0,89900.0,0.07793]
[1765787755683,0.60057,89901.0,89900.0,0.07793]
[1765787756678,0.62774,89901.0,89900.0,0.07793]
[1765787757277,0.655084,89901.0,89900.0,0.07793]
[1765787763587,0.627914,89901.0,89900.0,0.07793]
[1765787764683,0.600224,89901.0,89900.0,0.07793]
[1765787765385,0.791044,89901.0,89900.0,0.07793]
[1765787765688,1.16302892,89901.0,89900.0,0.07793]
[1765787766479,1.083064,89901.0,89900.0,0.07793]
[1765787772193,0.388144,89901.0,89900.0,0.07793]
[1765787772494,1.083064,89901.0,89900.0,0.07793]
[1765787773196,1.05572,89901.0,89900.0,0.07793]
[1765787773491,1.05572,89901.0,89900.0,0.40475]
[1765787773699,1.05572,89901.0,89900.0,0.52088]
[1765787773893,0.69492,89901.0,89900.0,0.5320036]
[1765787774290,0.69492,89901.0,89900.0,0.52088]
[1765787774794,1.07893,89901.0,89900.0,0.40475]
[1765787775493,1.07893,89901.0,89900.0,0.40575]
[1765787791704,1.07893,89901.0,89900.0,0.4168736]
[1765787792206,1.06627,89901.0,89900.0,0.4168736]
[1765787795215,1.06627,89901.0,89900.0,0.40575]
[1765787798829,1.14194,89901.0,89900.0,0.40575]
[1765787806038,1.14194,89901.0,89900.0,0.001]
[1765787806835,1.14194,89901.0,89900.0,0.18874]
[1765787807238,1.14194,89901.0,89900.0,0.36988]
[1765787810545,0.87691,89901.0,89900.0,0.36988]
[1765787810926,1.06627,89901.0,89900.0,0.36988]
[1765787811244,1.06623,89901.0,89900.0,0.36988]
[1765787814441,0.3824745,89893.0,89892.0,0.18790683]
[1765787814633,1.4381545,89893.0,89892.0,0.00016683]
[1765787815036,1.4381545,89893.0,89891.0,0.00153]
[1765787815234,0.48033,89892.0,89891.0,0.00153]
[1765787817153,0.48033,89892.0,89883.0,0.00016683]
[1765787817154,0.44175,89884.0,89883.0,0.35164683]
[1765787817457,1.49743,89884.0,89883.0,0.35164683]
[1765787818441,1.49743,89884.0,89883.0,0.35464683]
[1765787818634,1.49743,89884.0,89883.0,0.00516683]
[1765787819343,1.49743,89884.0,89866.0,0.00013479]
[1765787819344,0.32758,89867.0,89866.0,0.33438479]
[1765787821450,0.32758,89867.0,89866.0,0.00013479]
[1765787821747,0.39153156,89867.0,89866.0,0.00013479]
[1765787822549,0.33158,89867.0,89866.0,0.00013479]
[1765787823430,0.33458,89867.0,89866.0,0.00013479]
[1765787824442,0.32758,89859.0,89858.0,0.33664258]
[1765787824643,1.38334,89859.0,89858.0,0.33664258]
[1765787825441,1.38342606,89859.0,89858.0,0.33664258]
[1765787826561,1.38442606,89859.0,89858.0,0.33664258]
[1765787827054,1.38442606,89859.0,89858.0,0.00239258]
[1765787827758,1.39555476,89859.0,89858.0,0.00239258]
[1765787828050,1.39455476,89859.0,89858.0,0.00021557]
[1765787828246,1.39755476,89859.0,89858.0,0.00021557]
[1765787829356,0.32758,89845.0,89844.0,0.69505]
[1765787829653,0.32766508,89845.0,89844.0,0.69505]
[1765787830850,0.16822508,89845.0,89844.0,0.69605]
[1765787831058,8.508e-05,89845.0,89844.0,0.69605]
[1765787831351,0.00016693,89853.0,89852.0,0.3453796]
[1765787831540,0.08740932,89867.0,89866.0,0.3453779]
[1765787831748,0.6453,89875.0,89874.0,0.33425]
[1765787832152,0.47720971,89875.0,89874.0,0.33425]
[1765787832454,4.971e-05,89875.0,89874.0,0.33425]
[1765787833358,0.00104971,89875.0,89874.0,0.42695]
[1765787833561,0.64838261,89887.0,89886.0,0.3453754]
[1765787834459,0.64838261,89887.0,89886.0,0.4298554]
[1765787835357,0.64838261,89887.0,89886.0,0.3453754]
[1765787836248,0.64938261,89887.0,89886.0,0.3453754]
[1765787836859,0.001,89887.0,89886.0,0.4397754]
[1765787838155,0.001,89887.0,89886.0,0.4407754]
[1765787839259,0.00016693,89895.0,89894.0,0.3453744]
[1765787839260,0.32774693,89895.0,89894.0,0.3453744]
[1765787840460,0.32874693,89895.0,89894.0,0.3453744]
[1765787842556,0.32774693,89895.0,89894.0,0.3473744]
[1765787843059,0.32774693,89895.0,89894.0,0.3463744]
[1765787843452,0.32774693,89895.0,89894.0,0.3473744]
[1765787845257,0.32774693,89895.0,89894.0,0.33625]
[1765787846860,0.32774693,89895.0,89894.0,0.33525]
[1765787847059,0.41474693,89895.0,89894.0,0.001]
[1765787848464,0.30457,89887.0,89886.0,0.29977693]
[1765787850067,0.30457,89887.0,89886.0,0.30077693]
[1765787850464,0.30457,89887.0,89886.0,0.30177693]
[1765787857295,0.30457,89887.0,89886.0,0.00126203]
[1765787857479,0.70457,89887.0,89886.0,2.03e-06]
[1765787857991,0.73239937,89887.0,89886.0,2.03e-06]
[1765787858377,0.82286836,89887.0,89886.0,2.03e-06]
[1765787858579,0.73239937,89887.0,89886.0,2.03e-06]
[1765787858779,0.2986,89879.0,89878.0,0.00016693]
[1765787858994,1.43439089,89879.0,89878.0,0.00016693]
[1765787859397,1.35456,89879.0,89878.0,0.00016693]
[1765787860283,1.3656862,89879.0,89878.0,0.00016693]
[1765787861083,1.3736862,89879.0,89878.0,0.00016693]
[1765787862991,1.3736862,89879.0,89878.0,0.14596693]
[1765787863396,1.3736862,89879.0,89878.0,0.00016693]
[1765787863894,1.3737262,89879.0,89878.0,0.00016693]
[1765787864392,1.3657262,89879.0,89878.0,0.00016693]
[1765787864593,1.3727262,89879.0,89878.0,0.00016693]
[1765787864796,1.3737262,89879.0,89878.0,0.00016693]
[1765787865194,1.3657262,89879.0,89878.0,0.00016693]
[1765787865398,1.3737262,89879.0,89878.0,0.00016693]
[1765787865794,1.3727262,89879.0,89878.0,0.00016693]
[1765787865995,1.3737262,89879.0,89878.0,0.00016693]
[1765787866890,1.3667262,89879.0,89878.0,0.00016693]
[1765787867090,1.3737262,89879.0,89878.0,0.00016693]
[1765787868490,1.3667262,89879.0,89878.0,0.14596693]
[1765787868695,1.3737262,89879.0,89878.0,0.14596693]
[1765787868997,1.3737262,89879.0,89878.0,0.29906693]
[1765787869994,1.3667262,89879.0,89878.0,0.29906693]
[1765787870196,1.3737262,89879.0,89878.0,0.29906693]
[1765787870786,1.3667262,89879.0,89878.0,0.29906693]
[1765787870991,0.6674,89879.0,89878.0,0.29906693]
[1765787871194,1.00184,89879.0,89878.0,0.29906693]
[1765787871598,0.99484,89879.0,89878.0,0.29906693]
[1765787871789,1.00184,89879.0,89878.0,0.29906693]
[1765787872287,1.00084,89879.0,89878.0,0.29906693]
[1765787872485,1.00184,89879.0,89878.0,0.29906693]
[1765787873697,0.99484,89879.0,89878.0,0.29906693]
[1765787877394,0.99584,89879.0,89878.0,0.29906693]
[1765787877896,0.99584,89879.0,89878.0,0.00016693]
[1765787878095,0.99484,89879.0,89878.0,0.00016693]
[1765787878296,0.99584,89879.0,89878.0,0.00016693]
[1765787879209,1.00184,89879.0,89878.0,0.00016693]
[1765787879506,1.06169569,89879.0,89878.0,0.00016693]
[1765787879908,1.05469569,89879.0,89878.0,0.00016693]
[1765787880108,1.00184,89879.0,89878.0,0.00016693]
[1765787880309,1.06169569,89879.0,89878.0,0.00016693]
[1765787880608,1.06169569,89879.0,89878.0,0.14300693]
[1765787881000,1.00184,89879.0,89878.0,0.14300693]
[1765787881206,1.06169569,89879.0,89878.0,0.00016693]
[1765787882410,1.00184,89879.0,89878.0,0.00016693]
[1765787884010,1.00184,89879.0,89878.0,0.27877693]
[1765787884314,1.00188,89879.0,89878.0,0.27877693]
[1765787885615,0.99488,89879.0,89878.0,0.27877693]
[1765787887506,0.99388,89879.0,89878.0,0.14300693]
[1765787887712,0.99488,89879.0,89878.0,0.27877693]
[1765787888913,0.99588,89879.0,89878.0,0.27877693]
[1765787889111,0.99488,89879.0,89878.0,0.27877693]
[1765787889307,0.99588,89879.0,89878.0,0.27877693]
[1765787893313,1.07575657,89879.0,89878.0,0.27877693]
[1765787895321,0.99588,89879.0,89878.0,0.27877693]
[1765787895821,1.0759672,89879.0,89878.0,0.27877693]
[1765787896322,0.99588,89879.0,89878.0,0.27877693]
[1765787896723,1.07597319,89879.0,89878.0,0.27877693]
[1765787897223,1.07597325,89879.0,89878.0,0.27877693]
[1765787897423,0.99588,89879.0,89878.0,0.27877693]
[1765787898419,0.99488,89879.0,89878.0,0.27877693]
[1765787899723,0.99588,89879.0,89878.0,0.27877693]
[1765787900420,0.99488,89879.0,89878.0,0.27877693]
[1765787901337,0.99388,89879.0,89878.0,0.27877693]
[1765787902032,0.99488,89879.0,89878.0,0.27877693]
[1765787907534,0.99488,89879.0,89878.0,0.27977693]
[1765787907730,0.001,89879.0,89878.0,0.27977693]
[1765787907935,0.06008816,89883.0,89882.0,0.2386]
[1765787908335,0.54112816,89884.0,89883.0,0.2497257]
[1765787908530,0.48104,89884.0,89883.0,0.2497257]
[1765787909338,0.60282,89884.0,89883.0,0.2497257]
[1765787910836,0.60282,89884.0,89883.0,0.2507257]
[1765787911541,0.60282,89884.0,89883.0,0.2517257]
[1765787911946,0.60282,89884.0,89883.0,0.2507257]
[1765787912150,0.60282,89884.0,89883.0,0.2517257]
[1765787916853,0.24202,89884.0,89883.0,0.2517257]
[1765787918455,0.24202,89884.0,89883.0,0.6125257]
[1765787923547,0.24202,89884.0,89883.0,0.6115257]
[1765787923746,0.24202,89884.0,89883.0,0.6125257]
[1765787925248,0.18096816,89891.0,89890.0,0.25141]
[1765787925448,0.12088,89891.0,89890.0,0.25141]
[1765787925846,0.24266,89891.0,89890.0,0.25141]
[1765787927658,0.24366,89891.0,89890.0,0.25141]
[1765787928161,0.24266,89891.0,89890.0,0.25141]
[1765787929653,0.24266,89891.0,89890.0,0.25241]
[1765787933352,0.30266012,89891.0,89890.0,0.001]
[1765787933564,0.24266,89891.0,89890.0,0.001]
[1765787942478,0.93766,89891.0,89890.0,0.001]
[1765787945271,0.2358662,89879.0,89867.0,0.3608]
[1765787945472,1.37172137,89879.0,89869.0,0.13076681]
[1765787945669,1.2916662,89879.0,89869.0,0.13076681]
[1765787945872,1.37172137,89879.0,89869.0,0.13076681]
[1765787946377,1.2916662,89879.0,89878.0,0.00516693]
[1765787950275,1.31921161,89879.0,89878.0,0.00516693]
[1765787951875,1.30808541,89879.0,89878.0,0.22739693]
[1765787952065,1.30808541,89879.0,89878.0,0.11648693]
[1765787952265,1.30808541,89879.0,89878.0,0.00516693]
[1765787952670,1.30808541,89879.0,89878.0,0.22502693]
[1765787953372,0.61308541,89879.0,89878.0,0.22502693]
[1765787953588,1.30812541,89879.0,89878.0,0.22502693]
[1765787956069,1.36810423,89879.0,89878.0,0.22502693]
[1765787956277,1.36810423,89879.0,89878.0,0.00516693]
[1765787958264,0.10888,89861.0,89860.0,0.21986]
[1765787958466,0.32483,89861.0,89860.0,0.21986]
[1765787958669,0.21595,89861.0,89860.0,0.21986]
[1765787959473,0.21595,89861.0,89860.0,0.22086]
[1765787959972,0.21595,89861.0,89860.0,0.21986]
[1765787960172,0.21595,89861.0,89860.0,0.22486]
[1765787960775,0.21595,89861.0,89860.0,0.21986]
[1765787962166,0.10707,89861.0,89860.0,0.28557]
[1765787962367,0.91099,89866.0,89865.0,0.21986]
[1765787963575,0.21595,89866.0,89865.0,0.21986]
[1765787963875,0.89795,89866.0,89865.0,0.21986]
[1765787964078,0.21595,89859.0,89858.0,0.46975]
[1765787964382,0.21595,89859.0,89858.0,0.21986]
[1765787966080,0.21595,89859.0,89858.0,0.22086]
[1765787968780,0.57675,89859.0,89858.0,0.001]
[1765787968980,0.57675,89859.0,89858.0,0.10872]
[1765787969389,0.57675,89859.0,89858.0,0.001]
[1765787970178,0.57675,89859.0,89858.0,0.10872]
[1765787970379,0.57675,89859.0,89858.0,0.001]
[1765787974892,0.57675,89859.0,89858.0,0.098]
[1765787975088,0.57675,89859.0,89858.0,0.001]
[1765787975386,0.57675,89859.0,89858.0,0.098]
[1765787975589,0.57675,89859.0,89858.0,0.19714]
[1765787978184,1.27195,89859.0,89858.0,0.19714]
[1765787978384,0.57675,89859.0,89858.0,0.19714]
[1765787978585,1.27195,89859.0,89858.0,0.19714]
[1765787979285,1.27195,89859.0,89858.0,0.098]
[1765787979886,1.27195,89859.0,89858.0,0.001]
[1765787993506,0.2094793,89854.0,89853.0,1.7437]
[1765787993701,0.5702793,89854.0,89853.0,1.7437]
[1765787994610,0.5702793,89854.0,89853.0,1.7457]
[1765787994998,0.5752793,89854.0,89853.0,1.7457]
[1765787995404,0.5752793,89854.0,89853.0,1.7437]
[1765787995613,0.5852793,89854.0,89853.0,1.7437]
[1765788007211,0.57415,89854.0,89853.0,1.7437]
[1765788007417,1.25471,89854.0,89853.0,1.7437]
[1765788009020,0.89391,89854.0,89853.0,1.7437]
[1765788009722,0.81193,89854.0,89853.0,1.7437]
[1765788010625,0.71028,89854.0,89853.0,1.7437]
[1765788010822,0.015,89854.0,89853.0,1.7437]
[1765788011019,0.07505515,89854.0,89853.0,1.7437]
[1765788011525,0.015,89854.0,89853.0,1.7437]
[1765788012810,0.20283,89854.0,89853.0,1.7437]
[1765788013026,0.26288515,89854.0,89853.0,1.7437]
[1765788013221,0.20283,89854.0,89853.0,1.7437]
[1765788013727,0.10532,89854.0,89853.0,1.7437]
[1765788014023,0.07505515,89854.0,89853.0,1.7437]
[1765788014224,0.015,89854.0,89853.0,1.7437]
[1765788014418,0.0075414,89854.0,89853.0,1.7437]
[1765788014615,0.06005515,89858.0,89857.0,0.19211]
[1765788015625,0.06005515,89859.0,89858.0,0.19211]
[1765788016417,0.06005515,89861.0,89860.0,0.24726]
[1765788016727,0.3608,89862.0,89861.0,0.19211]
[1765788016728,0.06005515,89862.0,89861.0,0.19211]
[1765788016919,0.69544693,89869.0,89866.0,0.09479]
[1765788016920,0.06005515,89867.0,89866.0,0.09479]
[1765788017126,0.06005515,89868.0,89867.0,0.19211]
[1765788017326,0.00016693,89869.0,89867.0,0.19211]
[1765788017327,0.06022208,89869.0,89867.0,0.19211]
[1765788017626,0.15054208,89869.0,89868.0,0.19211]
[1765788018225,0.24805208,89869.0,89868.0,0.19211]
[1765788018426,0.00016693,89869.0,89868.0,0.19211]
[1765788020021,1.05608,89879.0,89876.0,0.19211]
[1765788020022,0.06005515,89878.0,89876.0,0.19211]
[1765788020221,1.05608,89879.0,89878.0,0.19211]
[1765788021429,1.05608,89879.0,89878.0,0.19311]
[1765788022015,0.45112,89879.0,89878.0,0.19311]
[1765788023231,0.45312,89879.0,89878.0,0.19311]
[1765788023632,0.55063,89879.0,89878.0,0.19311]
[1765788026931,0.18983,89879.0,89878.0,0.19311]
[1765788033536,0.24988515,89879.0,89878.0,0.19311]
[1765788036338,0.18983,89879.0,89878.0,0.19311]
[1765788036742,0.18983,89879.0,89878.0,0.001]
[1765788037234,0.18983,89879.0,89878.0,0.16764]
[1765788044345,0.18783,89879.0,89878.0,0.16664]
[1765788044539,0.18983,89879.0,89878.0,0.16664]
[1765788044738,0.24981808,89879.0,89878.0,0.16664]
[1765788044934,0.24981808,89879.0,89878.0,0.08177]
[1765788045344,0.1703,89870.0,89869.0,0.29744521]
[1765788045643,0.1703,89870.0,89869.0,0.16664]
[1765788047048,0.1703,89870.0,89869.0,0.16764]
[1765788047746,0.1703,89870.0,89869.0,0.16964]
[1765788052235,0.06003727,89873.0,89872.0,0.16664]
[1765788052442,0.06003727,89875.0,89873.0,0.16664]
[1765788052752,0.23033727,89876.0,89875.0,0.16664]
[1765788053443,0.1703,89876.0,89875.0,0.16664]
[1765788054144,0.1703,89876.0,89875.0,0.16764]
[1765788054343,0.69508,89885.0,89877.0,0.16664]
[1765788054344,0.06003727,89878.0,89877.0,0.16664]
[1765788054549,0.14315727,89878.0,89877.0,0.16664]
[1765788054748,0.1703,89878.0,89877.0,0.16664]
[1765788056444,0.23039846,89878.0,89877.0,0.16764]
[1765788056644,0.1703,89878.0,89877.0,0.16764]
[1765788056949,0.1703,89878.0,89877.0,0.16964]
[1765788058354,0.1703,89878.0,89877.0,0.16764]
[1765788058549,0.1703,89878.0,89877.0,0.16964]
[1765788061848,0.06009504,89878.0,89877.0,0.16964]
[1765788062252,0.06009504,89879.0,89877.0,0.1807664]
[1765788062462,0.06009504,89879.0,89878.0,0.15281]
[1765788062959,0.06009504,89880.0,89878.0,0.15281]
[1765788063152,0.15350693,89887.0,89886.0,0.15281]
[1765788064657,0.15350693,89887.0,89886.0,0.15381]
[1765788072458,0.2135472,89887.0,89886.0,0.15381]
[1765788073371,0.15350693,89887.0,89886.0,0.15381]
[1765788075964,0.07652693,89887.0,89886.0,0.15381]
[1765788076164,0.00016693,89887.0,89886.0,0.15381]
[1765788076365,0.15350693,89887.0,89886.0,0.19585]
[1765788078772,0.13655362,89887.0,89886.0,0.19585]
[1765788078970,0.00016693,89887.0,89886.0,0.19585]
[1765788090283,0.13742693,89887.0,89886.0,0.15381]
[1765788095779,0.00016693,89887.0,89886.0,0.1885]
[1765788100184,0.13742693,89887.0,89886.0,0.1885]
[1765788100376,0.13742693,89887.0,89886.0,0.15381]
[1765788104386,0.06020141,89887.0,89886.0,0.15381]
[1765788104586,0.00016693,89887.0,89886.0,0.1908]
[1765788106291,0.06020141,89887.0,89886.0,0.1908]
[1765788107194,0.00016693,89887.0,89886.0,0.1908]
[1765788107386,0.06020141,89887.0,89886.0,0.1908]
[1765788108485,0.00016693,89887.0,89886.0,0.1908]
[1765788109895,0.13742693,89887.0,89886.0,0.07661]
[1765788110085,0.13742693,89887.0,89886.0,0.14785]
[1765788113696,0.12742693,89887.0,89886.0,0.14785]
[1765788118603,0.1392447,89892.0,89891.0,0.12586]
[1765788119205,0.1784947,89892.0,89891.0,0.12586]
[1765788120905,0.1804947,89892.0,89891.0,0.12586]
[1765788121105,0.1804947,89892.0,89891.0,0.12686]
[1765788121491,0.1784947,89892.0,89891.0,0.12686]
[1765788121696,0.1784947,89892.0,89891.0,0.12886]
[1765788121896,0.16737,89892.0,89891.0,0.12886]
[1765788123099,0.15737,89892.0,89891.0,0.12886]
[1765788124908,0.15737,89892.0,89891.0,0.12686]
[1765788125109,0.15737,89892.0,89891.0,0.12786]
[1765788125310,0.15737,89892.0,89891.0,0.12886]
[1765788126901,0.15737,89892.0,89891.0,0.12686]
[1765788127104,0.15737,89892.0,89891.0,0.12886]
[1765788127305,0.15737,89892.0,89891.0,0.11886]
[1765788127614,0.15737,89892.0,89891.0,0.11786]
[1765788130702,0.25742337,89892.0,89891.0,0.11586]
[1765788130902,0.25742337,89892.0,89891.0,0.11786]
[1765788131416,0.15737,89892.0,89891.0,0.11786]
[1765788131814,0.14737,89892.0,89891.0,0.11786]
[1765788136821,0.14737,89892.0,89891.0,0.10786]
[1765788139822,0.22750592,89892.0,89891.0,0.10786]
[1765788140412,0.21750592,89892.0,89891.0,0.10786]
[1765788141224,0.13737,89892.0,89891.0,0.10786]
[1765788144117,0.13737,89892.0,89891.0,0.09786]
[1765788145921,0.09812,89892.0,89891.0,0.09786]
[1765788146111,0.09812,89892.0,89891.0,0.09686]
[1765788146311,0.09812,89892.0,89891.0,0.09786]
[1765788146925,0.09812,89892.0,89891.0,0.09686]
[1765788147120,0.09812,89892.0,89891.0,0.09886]
[1765788147826,0.08812,89892.0,89891.0,0.09986]
[1765788150426,0.08812,89892.0,89891.0,0.09786]
[1765788150721,0.08812,89892.0,89891.0,0.09986]
[1765788152516,0.08812,89892.0,89891.0,0.09586]
[1765788152716,0.08812,89892.0,89891.0,0.09986]
[1765788154615,0.12205943,89895.0,89894.0,0.12362]
[1765788155228,0.18477943,89895.0,89894.0,0.12362]
[1765788155725,0.18477943,89895.0,89894.0,0.12462]
[1765788156424,0.12205943,89895.0,89894.0,0.12662]
[1765788156726,0.00016693,89895.0,89894.0,0.12762]
[1765788156933,0.06196693,89895.0,89894.0,0.12762]
[1765788157134,0.00016693,89895.0,89894.0,0.12562]
[1765788157441,0.00016693,89895.0,89894.0,0.12762]
[1765788157618,0.00222476,89898.0,89897.0,0.12362]
[1765788158321,0.06231726,89898.0,89897.0,0.12362]
[1765788159223,0.00222476,89898.0,89897.0,0.12362]
[1765788159428,0.05149112,89899.0,89898.0,0.1529839]
[1765788159618,0.12468693,89906.0,89905.0,0.134743]
[1765788160030,0.00016693,89906.0,89905.0,0.134743]
[1765788160419,0.06196693,89906.0,89905.0,0.134743]
[1765788162129,0.06196693,89906.0,89905.0,0.136743]
[1765788162314,0.06196693,89906.0,89905.0,0.139743]
[1765788162714,0.12468693,89906.0,89905.0,0.139743]
[1765788165832,0.12468693,89906.0,89905.0,0.500543]
[1765788169935,0.16223,89916.0,89915.0,0.1347418]
[1765788170327,0.16223,89916.0,89915.0,0.12362]
[1765788171036,0.16223,89916.0,89915.0,0.06177]
[1765788171240,0.16223,89916.0,89915.0,0.001]
[1765788171731,0.16223,89916.0,89908.0,0.0728926]
[1765788171732,0.0618,89909.0,89908.0,0.0728926]
[1765788171930,0.12452,89909.0,89908.0,0.1347426]
[1765788173934,0.12452,89909.0,89908.0,0.1357426]
[1765788174533,0.12452,89909.0,89908.0,0.1377426]
[1765788187352,0.1844885,89909.0,89908.0,0.1377426]
[1765788190050,0.12452,89909.0,89908.0,0.1377426]
[1765788198554,0.18455779,89909.0,89908.0,0.1377426]
[1765788199364,0.12452,89909.0,89908.0,0.1377426]
[1765788200449,0.1846057,89909.0,89908.0,0.1377426]
[1765788200658,0.12452,89909.0,89908.0,0.1377426]
[1765788206652,0.12452,89909.0,89908.0,0.4985426]
[1765788219261,0.12452,89909.0,89908.0,0.4975426]
[1765788219566,0.12452,89909.0,89908.0,0.4995426]
[1765788228876,0.18459941,89909.0,89908.0,0.4995426]
[1765788229579,0.12187941,89909.0,89908.0,0.4995426]
[1765788229979,0.17432941,89909.0,89908.0,0.4995426]
[1765788234172,0.17432941,89909.0,89908.0,0.4975426]
[1765788234478,0.17432941,89909.0,89908.0,0.4995426]
[1765788234979,0.17432941,89909.0,89908.0,0.4975426]
[1765788235184,0.17432941,89909.0,89908.0,0.4995426]
[1765788236468,0.17432941,89909.0,89908.0,0.4995427]
[1765788238577,0.17432941,89909.0,89908.0,0.4975427]
[1765788238880,0.17432941,89909.0,89908.0,0.4995427]
[1765788241582,0.11425,89909.0,89908.0,0.4995427]
[1765788241785,0.17432941,89909.0,89908.0,0.4975427]
[1765788242084,0.17432941,89909.0,89908.0,0.4995427]
[1765788244186,0.11425,89909.0,89908.0,0.4995427]
[1765788245186,0.17432941,89909.0,89908.0,0.4995427]
[1765788246084,0.11425,89909.0,89908.0,0.4995427]
[1765788246476,0.17432941,89909.0,89908.0,0.4995427]
[1765788246877,0.11425,89909.0,89908.0,0.4995427]
[1765788254184,0.11425,89909.0,89908.0,0.48842]
[1765788254390,0.17432941,89909.0,89908.0,0.48842]
[1765788256892,0.17432941,89909.0,89908.0,0.48642]
[1765788257187,0.17432941,89909.0,89908.0,0.48842]
[1765788259089,0.17432941,89909.0,89908.0,0.48642]
[1765788259290,0.17432941,89909.0,89908.0,0.48842]
[1765788260196,0.11425,89909.0,89908.0,0.48642]
[1765788260396,0.11425,89909.0,89908.0,0.48842]
[1765788260694,0.17432941,89909.0,89908.0,0.48842]
[1765788262100,0.17432941,89909.0,89908.0,0.48642]
[1765788262297,0.17432941,89909.0,89908.0,0.48842]
[1765788262592,0.06007941,89909.0,89908.0,0.48842]
[1765788263388,0.08013856,89914.0,89908.0,0.3648]
[1765788263598,0.17669856,89914.0,89913.0,0.09455]
[1765788263987,0.20384856,89914.0,89913.0,0.09455]
[1765788264686,0.17669856,89914.0,89913.0,0.09455]
[1765788265394,0.17669856,89914.0,89913.0,0.09555]
[1765788266897,0.17669856,89914.0,89913.0,0.09855]
[1765788267489,0.17669856,89914.0,89913.0,0.09655]
[1765788267708,0.17669856,89914.0,89913.0,0.09855]
[1765788268195,0.17669856,89914.0,89913.0,0.09655]
[1765788268401,0.17669856,89914.0,89913.0,0.09855]
[1765788268998,0.17669856,89914.0,89913.0,0.09655]
[1765788269202,0.20285856,89914.0,89913.0,0.09855]
[1765788271206,0.12272,89914.0,89913.0,0.09855]
[1765788272194,0.20285856,89914.0,89913.0,0.09855]
[1765788272396,0.12272,89914.0,89913.0,0.09655]
[1765788272596,0.12272,89914.0,89913.0,0.09855]
[1765788272997,0.12272,89914.0,89913.0,0.09655]
[1765788273296,0.12272,89914.0,89913.0,0.09855]
[1765788296519,0.81728,89914.0,89913.0,0.004]
[1765788298231,0.84574595,89914.0,89913.0,0.004]
[1765788299317,0.92579606,89914.0,89913.0,0.004]
[1765788299930,0.84574595,89914.0,89913.0,0.004]
[1765788300331,0.92579671,89914.0,89913.0,0.004]
[1765788300827,0.92579671,89914.0,89913.0,0.04142]
[1765788301025,0.84574595,89914.0,89913.0,0.04142]
[1765788301228,0.92578722,89914.0,89913.0,0.004]
[1765788303628,0.84574595,89914.0,89913.0,0.004]
[1765788303931,0.84578595,89914.0,89913.0,0.004]
[1765788309535,0.84578595,89914.0,89913.0,0.04142]
[1765788309738,0.84578595,89914.0,89913.0,0.004]
[1765788311734,0.0111227,89908.0,89907.0,0.00016683]
[1765788311935,0.07573,89891.0,89890.0,0.20470501]
[1765788312142,0.07573,89891.0,89890.0,0.074]
[1765788313437,0.07573,89891.0,89890.0,0.077]
[1765788314033,0.07573,89891.0,89890.0,0.08]
[1765788327457,0.0979157,89883.0,89882.0,0.00016683]
[1765788327640,0.0979157,89883.0,89874.0,0.3608]
[1765788327641,0.06647,89875.0,89874.0,0.43169]
[1765788329158,0.06647,89875.0,89874.0,0.43269]
[1765788330458,0.06647,89875.0,89874.0,0.43369]
[1765788335257,0.06647,89875.0,89874.0,0.07289]
[1765788335258,0.42727,89875.0,89874.0,0.07289]
[1765788335560,0.42727,89875.0,89874.0,0.07016]
[1765788335561,0.06647,89875.0,89874.0,0.07016]
[1765788350764,0.06000413,89878.0,89877.0,0.06816]
[1765788350969,0.3608,89880.0,89879.0,0.06816]
[1765788352273,0.3618,89880.0,89879.0,0.06816]
[1765788352871,0.001,89880.0,89879.0,0.42896]
[1765788353674,0.12946413,89889.0,89888.0,0.06816]
[1765788353974,0.15120413,89889.0,89888.0,0.06816]
[1765788354572,0.15120413,89889.0,89879.0,0.3658]
[1765788354573,0.06000413,89893.0,89892.0,0.0792846]
[1765788354880,0.06000413,89900.0,89898.0,0.0792839]
[1765788355069,0.42080413,89902.0,89898.0,0.0792839]
[1765788355676,0.06000413,89904.0,89898.0,0.0792839]
[1765788355876,0.06000413,89905.0,89898.0,0.0792839]
[1765788356179,0.06000413,89907.0,89898.0,0.0812839]
[1765788356779,0.06000413,89907.0,89898.0,0.0822839]
[1765788357076,0.06000413,89908.0,89898.0,0.0822839]
[1765788357277,0.06000413,89908.0,89898.0,0.0812839]
[1765788357676,0.06000413,89908.0,89898.0,0.0832839]
[1765788357873,0.12457413,89908.0,89907.0,0.06552]
[1765788358178,0.02999,89910.0,89909.0,0.06243]
[1765788358373,0.06139,89910.0,89909.0,0.06243]
[1765788360186,0.08313,89913.0,89912.0,0.06243]
[1765788361072,0.06139,89913.0,89912.0,0.06243]
[1765788361273,0.06155683,89918.0,89917.0,0.06243]
[1765788362966,0.06155683,89918.0,89917.0,0.06343]
[1765788364271,0.06155683,89918.0,89917.0,0.002]